[Event "Titled Tuesday Blitz July 6 2021"]
[White "Lopez Gracia, Fernando"]
[Black "Pridorozhni, Aleksei"]
[WhiteFideId "2207184"]
[BlackFideId "4127870"]
[WhiteElo "2390"]
[BlackElo "2565"]
[Result "0-1"]
[Round "06"]
[TimeControl "180+1"]
[Date "2021.07.06"]
[WhiteClock "0:00:32"]
[BlackClock "0:00:41"]

1. e4 {[%clk 0:03:00]}  c5 {[%clk 0:02:56]} 2. c3 {[%clk 0:02:57]}  e6 {[%clk 0:02:55]} 3. d4 {[%clk 0:02:56]}  d5 {[%clk 0:02:56]} 4. exd5 {[%clk 0:02:56]}  exd5 {[%clk 0:02:55]} 5. Nf3 {[%clk 0:02:57]}  Nc6 {[%clk 0:02:56]} 6. Bb5 {[%clk 0:02:55]}  Bd6 {[%clk 0:02:56]} 7. O-O {[%clk 0:02:53]}  Ne7 {[%clk 0:02:56]} 8. dxc5 {[%clk 0:02:53]}  Bxc5 {[%clk 0:02:57]} 9. Nbd2 {[%clk 0:02:54]}  O-O {[%clk 0:02:55]} 10. Nb3 {[%clk 0:02:53]}  Bb6 {[%clk 0:02:56]} 11. Nbd4 {[%clk 0:02:53]}  Nxd4 {[%clk 0:02:54]} 12. Nxd4 {[%clk 0:02:52]}  Nf5 {[%clk 0:02:55]} 13. Nxf5 {[%clk 0:02:51]}  Bxf5 {[%clk 0:02:56]} 14. Bd3 {[%clk 0:02:51]}  Be4 {[%clk 0:02:56]} 15. Bxe4 {[%clk 0:02:50]}  dxe4 {[%clk 0:02:56]} 16. Qe2 {[%clk 0:02:51]}  Re8 {[%clk 0:02:53]} 17. Be3 {[%clk 0:02:51]}  Qf6 {[%clk 0:02:42]} 18. Rfd1 {[%clk 0:02:48]}  Rad8 {[%clk 0:02:40]} 19. a4 {[%clk 0:02:42]}  h6 {[%clk 0:02:31]} 20. h3 {[%clk 0:02:40]}  Qc6 {[%clk 0:02:27]} 21. Bxb6 {[%clk 0:02:31]}  Qxb6 {[%clk 0:02:25]} 22. Rxd8 {[%clk 0:02:30]}  Rxd8 {[%clk 0:02:25]} 23. b4 {[%clk 0:02:26]}  Qc6 {[%clk 0:02:21]} 24. c4 {[%clk 0:02:17]}  Rd4 {[%clk 0:02:19]} 25. Rc1 {[%clk 0:02:15]}  Qxa4 {[%clk 0:02:16]} 26. Qg4 {[%clk 0:02:14]}  Qxb4 {[%clk 0:02:09]} 27. Qc8+ {[%clk 0:02:10]}  Qf8 {[%clk 0:02:09]} 28. Qxb7 {[%clk 0:02:10]}  Qc5 {[%clk 0:02:06]} 29. Qa6 {[%clk 0:01:54]}  Rd2 {[%clk 0:01:57]} 30. Rf1 {[%clk 0:01:47]}  Rc2 {[%clk 0:01:55]} 31. Qa4 {[%clk 0:01:35]}  Rxc4 {[%clk 0:01:36]} 32. Qe8+ {[%clk 0:01:34]}  Qf8 {[%clk 0:01:36]} 33. Qe5 {[%clk 0:01:34]}  Qc8 {[%clk 0:01:30]} 34. g4 {[%clk 0:01:28]}  g6 {[%clk 0:01:24]} 35. Kg2 {[%clk 0:01:27]}  Qa8 {[%clk 0:01:13]} 36. Kg1 {[%clk 0:01:19]}  a5 {[%clk 0:01:07]} 37. Ra1 {[%clk 0:01:09]}  a4 {[%clk 0:01:06]} 38. Qb5 {[%clk 0:01:08]}  Rd4 {[%clk 0:00:59]} 39. g5 {[%clk 0:01:00]}  hxg5 {[%clk 0:00:55]} 40. Qxg5 {[%clk 0:00:59]}  Rd3 {[%clk 0:00:51]} 41. h4 {[%clk 0:00:57]}  e3 {[%clk 0:00:50]} 42. fxe3 {[%clk 0:00:48]}  Qe4 {[%clk 0:00:49]} 43. Re1 {[%clk 0:00:41]}  a3 {[%clk 0:00:46]} 44. h5 {[%clk 0:00:41]}  Rd5 {[%clk 0:00:45]} 45. Qf6 {[%clk 0:00:33]}  Rxh5 {[%clk 0:00:42]} 46. Qd8+ {[%clk 0:00:32]}  Kh7 {[%clk 0:00:41]} 0-1


[Site "https://www.chess.com"]

[Event "Titled Tuesday Blitz July 6 2021"]
[White "Lortkipanidze, Nodar"]
[Black "Praveen, Kumar C"]
[WhiteFideId "13604058"]
[BlackFideId "5007372"]
[WhiteElo "2312"]
[BlackElo "2236"]
[Result "1-0"]
[Round "06"]
[TimeControl "180+1"]
[Date "2021.07.06"]
[WhiteClock "0:00:32"]
[BlackClock "0:00:34"]

1. e4 {[%clk 0:03:00]}  d6 {[%clk 0:02:58]} 2. d4 {[%clk 0:03:01]}  Nf6 {[%clk 0:02:58]} 3. Nc3 {[%clk 0:03:01]}  e5 {[%clk 0:02:58]} 4. Nge2 {[%clk 0:03:00]}  Nbd7 {[%clk 0:02:57]} 5. f3 {[%clk 0:02:59]}  Be7 {[%clk 0:02:58]} 6. Be3 {[%clk 0:02:59]}  O-O {[%clk 0:02:58]} 7. Qd2 {[%clk 0:02:59]}  c6 {[%clk 0:02:58]} 8. O-O-O {[%clk 0:02:59]}  a6 {[%clk 0:02:57]} 9. g4 {[%clk 0:02:56]}  b5 {[%clk 0:02:57]} 10. Ng3 {[%clk 0:02:57]}  Re8 {[%clk 0:02:56]} 11. h4 {[%clk 0:02:56]}  b4 {[%clk 0:02:54]} 12. Nce2 {[%clk 0:02:56]}  c5 {[%clk 0:02:52]} 13. dxc5 {[%clk 0:02:52]}  Nxc5 {[%clk 0:02:49]} 14. g5 {[%clk 0:02:35]}  Nfd7 {[%clk 0:02:42]} 15. Nf5 {[%clk 0:02:34]}  Qa5 {[%clk 0:02:36]} 16. Kb1 {[%clk 0:02:34]}  Bf8 {[%clk 0:02:31]} 17. Nc1 {[%clk 0:02:33]}  Bb7 {[%clk 0:02:25]} 18. Bc4 {[%clk 0:02:31]}  Nb6 {[%clk 0:02:16]} 19. Bb3 {[%clk 0:02:23]}  Rad8 {[%clk 0:01:56]} 20. Bxc5 {[%clk 0:02:12]}  Qxc5 {[%clk 0:01:42]} 21. Nd3 {[%clk 0:02:10]}  Qb5 {[%clk 0:01:37]} 22. h5 {[%clk 0:01:51]}  d5 {[%clk 0:01:34]} 23. g6 {[%clk 0:01:51]}  hxg6 {[%clk 0:01:23]} 24. hxg6 {[%clk 0:01:52]}  fxg6 {[%clk 0:01:23]} 25. Qh2 {[%clk 0:01:50]}  gxf5 {[%clk 0:01:18]} 26. Qh7+ {[%clk 0:01:50]}  Kf7 {[%clk 0:01:19]} 27. Qxf5+ {[%clk 0:01:50]}  Kg8 {[%clk 0:01:11]} 28. Nxe5 {[%clk 0:01:29]}  Rxe5 {[%clk 0:01:10]} 29. Qxe5 {[%clk 0:01:30]}  Re8 {[%clk 0:01:10]} 30. Qf5 {[%clk 0:01:21]}  Nc4 {[%clk 0:01:05]} 31. Qh7+ {[%clk 0:00:56]}  Kf7 {[%clk 0:01:04]} 32. Rh5 {[%clk 0:00:50]}  Nd2+ {[%clk 0:01:00]} 33. Kc1 {[%clk 0:00:44]}  Nxb3+ {[%clk 0:01:00]} 34. axb3 {[%clk 0:00:44]}  Re6 {[%clk 0:00:53]} 35. Rf5+ {[%clk 0:00:38]}  Ke8 {[%clk 0:00:49]} 36. exd5 {[%clk 0:00:33]}  Rh6 {[%clk 0:00:35]} 37. Qg8 {[%clk 0:00:33]}  Qc5 {[%clk 0:00:34]} 38. Rxf8+ {[%clk 0:00:32]} 1-0


[Site "https://www.chess.com"]

[Event "Titled Tuesday Blitz July 6 2021"]
[White "Manukyan, Artyom"]
[Black "Gunina, Valentina"]
[WhiteFideId "13305786"]
[BlackFideId "4167570"]
[WhiteElo "2034"]
[BlackElo "2399"]
[Result "0-1"]
[Round "06"]
[TimeControl "180+1"]
[Date "2021.07.06"]
[WhiteClock "0:00:04"]
[BlackClock "0:00:04"]

1. e4 {[%clk 0:03:00]}  c6 {[%clk 0:02:59]} 2. d4 {[%clk 0:03:01]}  d5 {[%clk 0:02:59]} 3. exd5 {[%clk 0:03:01]}  cxd5 {[%clk 0:02:59]} 4. Bd3 {[%clk 0:03:02]}  Nc6 {[%clk 0:02:58]} 5. c3 {[%clk 0:03:02]}  g6 {[%clk 0:02:58]} 6. Nf3 {[%clk 0:03:02]}  Bg7 {[%clk 0:02:59]} 7. Bf4 {[%clk 0:03:01]}  Nh6 {[%clk 0:02:59]} 8. O-O {[%clk 0:03:00]}  Nf5 {[%clk 0:02:59]} 9. Ne5 {[%clk 0:02:59]}  O-O {[%clk 0:02:59]} 10. h3 {[%clk 0:02:59]}  Nd6 {[%clk 0:02:59]} 11. Re1 {[%clk 0:02:58]}  Be6 {[%clk 0:02:57]} 12. Qb3 {[%clk 0:02:53]}  Nxe5 {[%clk 0:02:55]} 13. Bxe5 {[%clk 0:02:50]}  Nc4 {[%clk 0:02:48]} 14. Bxg7 {[%clk 0:02:34]}  Kxg7 {[%clk 0:02:48]} 15. Qc2 {[%clk 0:02:02]}  Rb8 {[%clk 0:02:36]} 16. Nd2 {[%clk 0:02:01]}  b5 {[%clk 0:02:36]} 17. a3 {[%clk 0:01:58]}  Qc8 {[%clk 0:02:22]} 18. Re2 {[%clk 0:01:56]}  a5 {[%clk 0:02:05]} 19. Nb3 {[%clk 0:01:55]}  Re8 {[%clk 0:01:59]} 20. Nc5 {[%clk 0:01:55]}  Bf5 {[%clk 0:01:58]} 21. g4 {[%clk 0:01:33]}  Bxd3 {[%clk 0:01:56]} 22. Qxd3 {[%clk 0:01:34]}  e5 {[%clk 0:01:54]} 23. f3 {[%clk 0:01:15]}  Qc6 {[%clk 0:01:34]} 24. b4 {[%clk 0:01:14]}  Ra8 {[%clk 0:01:25]} 25. Rae1 {[%clk 0:01:13]}  exd4 {[%clk 0:00:35]} 26. Qxd4+ {[%clk 0:01:11]}  Kg8 {[%clk 0:00:35]} 27. bxa5 {[%clk 0:00:36]}  Rxe2 {[%clk 0:00:32]} 28. Rxe2 {[%clk 0:00:37]}  Nxa5 {[%clk 0:00:31]} 29. Re7 {[%clk 0:00:26]}  Qd6 {[%clk 0:00:29]} 30. Qe3 {[%clk 0:00:26]}  Nc4 {[%clk 0:00:27]} 31. Re8+ {[%clk 0:00:22]}  Rxe8 {[%clk 0:00:27]} 32. Qxe8+ {[%clk 0:00:23]}  Kg7 {[%clk 0:00:28]} 33. Nd7 {[%clk 0:00:14]}  Qg3+ {[%clk 0:00:27]} 34. Kf1 {[%clk 0:00:13]}  Qxf3+ {[%clk 0:00:27]} 35. Kg1 {[%clk 0:00:13]}  Qg3+ {[%clk 0:00:28]} 36. Kh1 {[%clk 0:00:14]}  Qxh3+ {[%clk 0:00:28]} 37. Kg1 {[%clk 0:00:15]}  Qxg4+ {[%clk 0:00:28]} 38. Kh1 {[%clk 0:00:15]}  Qf3+ {[%clk 0:00:28]} 39. Kg1 {[%clk 0:00:16]}  Qe3+ {[%clk 0:00:26]} 40. Qxe3 {[%clk 0:00:15]}  Nxe3 {[%clk 0:00:26]} 41. Nb6 {[%clk 0:00:15]}  Kf6 {[%clk 0:00:24]} 42. Nc8 {[%clk 0:00:16]}  Ke5 {[%clk 0:00:23]} 43. Na7 {[%clk 0:00:16]}  Nc4 {[%clk 0:00:19]} 44. Nxb5 {[%clk 0:00:15]}  h5 {[%clk 0:00:19]} 45. a4 {[%clk 0:00:16]}  Ke4 {[%clk 0:00:18]} 46. Nc7 {[%clk 0:00:15]}  Na5 {[%clk 0:00:16]} 47. Kg2 {[%clk 0:00:13]}  g5 {[%clk 0:00:16]} 48. Kh2 {[%clk 0:00:13]}  h4 {[%clk 0:00:15]} 49. Kg2 {[%clk 0:00:14]}  g4 {[%clk 0:00:14]} 50. Ne8 {[%clk 0:00:15]}  f5 {[%clk 0:00:13]} 51. Nf6+ {[%clk 0:00:15]}  Ke5 {[%clk 0:00:13]} 52. Nh5 {[%clk 0:00:13]}  Nc4 {[%clk 0:00:12]} 53. Kf2 {[%clk 0:00:12]}  Ke4 {[%clk 0:00:11]} 54. Nf6+ {[%clk 0:00:11]}  Ke5 {[%clk 0:00:11]} 55. Nh5 {[%clk 0:00:11]}  f4 {[%clk 0:00:11]} 56. Ng7 {[%clk 0:00:11]}  h3 {[%clk 0:00:10]} 57. Nh5 {[%clk 0:00:10]}  Kf5 {[%clk 0:00:08]} 58. Ng7+ {[%clk 0:00:06]}  Ke4 {[%clk 0:00:08]} 59. Nh5 {[%clk 0:00:05]}  h2 {[%clk 0:00:08]} 60. Kg2 {[%clk 0:00:05]}  g3 {[%clk 0:00:08]} 61. Nf6+ {[%clk 0:00:04]}  Kf5 {[%clk 0:00:08]} 62. Nh5 {[%clk 0:00:03]}  Kg4 {[%clk 0:00:08]} 63. Nf6+ {[%clk 0:00:02]}  Kf5 {[%clk 0:00:07]} 64. Nxd5 {[%clk 0:00:03]}  f3+ {[%clk 0:00:07]} 65. Kh1 {[%clk 0:00:03]}  Ke4 {[%clk 0:00:07]} 66. Nf6+ {[%clk 0:00:03]}  Ke3 {[%clk 0:00:05]} 67. Nh5 {[%clk 0:00:04]}  Kf2 {[%clk 0:00:04]} 68. Nxg3 {[%clk 0:00:04]}  Kxg3 {[%clk 0:00:04]} 0-1


[Site "https://www.chess.com"]

[Event "Titled Tuesday Blitz July 6 2021"]
[White "Markidis, Konstantinos"]
[Black "Matinian, Nikita"]
[WhiteFideId "4203500"]
[BlackFideId "24129100"]
[WhiteElo "2304"]
[BlackElo "2410"]
[Result "0-1"]
[Round "06"]
[TimeControl "180+1"]
[Date "2021.07.06"]
[WhiteClock "0:00:01"]
[BlackClock "0:00:07"]

1. e4 {[%clk 0:03:00]}  c5 {[%clk 0:02:55]} 2. Nf3 {[%clk 0:03:00]}  d6 {[%clk 0:02:52]} 3. Bb5+ {[%clk 0:03:00]}  Nd7 {[%clk 0:02:50]} 4. c3 {[%clk 0:02:59]}  Nf6 {[%clk 0:02:49]} 5. Bd3 {[%clk 0:03:00]}  g6 {[%clk 0:02:46]} 6. Bc2 {[%clk 0:02:59]}  Bg7 {[%clk 0:02:47]} 7. d4 {[%clk 0:03:00]}  O-O {[%clk 0:02:47]} 8. a4 {[%clk 0:03:00]}  Qc7 {[%clk 0:02:48]} 9. O-O {[%clk 0:02:59]}  e5 {[%clk 0:02:48]} 10. d5 {[%clk 0:02:55]}  c4 {[%clk 0:02:47]} 11. Na3 {[%clk 0:02:45]}  Nc5 {[%clk 0:02:46]} 12. Re1 {[%clk 0:02:44]}  b6 {[%clk 0:02:39]} 13. Qe2 {[%clk 0:02:10]}  Nb3 {[%clk 0:02:15]} 14. Bxb3 {[%clk 0:02:09]}  cxb3 {[%clk 0:02:16]} 15. Nb5 {[%clk 0:02:08]}  Qe7 {[%clk 0:02:08]} 16. Qc4 {[%clk 0:02:07]}  Bg4 {[%clk 0:02:05]} 17. Nd2 {[%clk 0:02:02]}  Nd7 {[%clk 0:01:55]} 18. f3 {[%clk 0:01:51]}  Bh5 {[%clk 0:01:52]} 19. g4 {[%clk 0:01:43]}  Qh4 {[%clk 0:01:43]} 20. Qe2 {[%clk 0:01:29]}  f5 {[%clk 0:01:39]} 21. gxh5 {[%clk 0:01:30]}  Nf6 {[%clk 0:01:30]} 22. Nf1 {[%clk 0:01:03]}  Nxh5 {[%clk 0:01:27]} 23. Qf2 {[%clk 0:00:25]}  Qe7 {[%clk 0:01:17]} 24. Qg2 {[%clk 0:00:23]}  fxe4 {[%clk 0:01:07]} 25. fxe4 {[%clk 0:00:23]}  Rf4 {[%clk 0:00:54]} 26. Bxf4 {[%clk 0:00:19]}  Nxf4 {[%clk 0:00:55]} 27. Qg4 {[%clk 0:00:17]}  Rf8 {[%clk 0:00:54]} 28. Ng3 {[%clk 0:00:16]}  h5 {[%clk 0:00:55]} 29. Qd1 {[%clk 0:00:11]}  h4 {[%clk 0:00:54]} 30. Qg4 {[%clk 0:00:06]}  hxg3 {[%clk 0:00:53]} 31. hxg3 {[%clk 0:00:06]}  Nd3 {[%clk 0:00:20]} 32. Rf1 {[%clk 0:00:06]}  Nxb2 {[%clk 0:00:18]} 33. Rxf8+ {[%clk 0:00:04]}  Bxf8 {[%clk 0:00:12]} 34. Rb1 {[%clk 0:00:02]}  Nxa4 {[%clk 0:00:07]} 35. Rxb3 {[%clk 0:00:01]}  Nc5 {[%clk 0:00:07]} 0-1


[Site "https://www.chess.com"]

[Event "Titled Tuesday Blitz July 6 2021"]
[White "Mirzoev, Azer"]
[Black "Isajevsky, Anton"]
[WhiteFideId "13400304"]
[BlackFideId "4142500"]
[WhiteElo "2525"]
[BlackElo "2510"]
[Result "1-0"]
[Round "06"]
[TimeControl "180+1"]
[Date "2021.07.06"]
[WhiteClock "0:00:28"]
[BlackClock "0:00:01"]

1. d4 {[%clk 0:02:59]}  d5 {[%clk 0:02:59]} 2. Nf3 {[%clk 0:03:00]}  Nf6 {[%clk 0:02:58]} 3. Bf4 {[%clk 0:03:01]}  e6 {[%clk 0:02:58]} 4. e3 {[%clk 0:03:01]}  Bd6 {[%clk 0:02:58]} 5. Bg3 {[%clk 0:03:02]}  b6 {[%clk 0:02:57]} 6. c4 {[%clk 0:03:01]}  Bb7 {[%clk 0:02:50]} 7. Nc3 {[%clk 0:03:02]}  a6 {[%clk 0:02:46]} 8. a3 {[%clk 0:03:00]}  O-O {[%clk 0:02:44]} 9. Rc1 {[%clk 0:03:00]}  Ne4 {[%clk 0:02:42]} 10. cxd5 {[%clk 0:02:59]}  exd5 {[%clk 0:02:32]} 11. Nxe4 {[%clk 0:02:59]}  dxe4 {[%clk 0:02:29]} 12. Ne5 {[%clk 0:02:59]}  Nd7 {[%clk 0:01:54]} 13. Nc6 {[%clk 0:02:40]}  Qg5 {[%clk 0:01:48]} 14. Qc2 {[%clk 0:02:33]}  Nf6 {[%clk 0:01:34]} 15. Be2 {[%clk 0:02:27]}  h5 {[%clk 0:01:24]} 16. h4 {[%clk 0:02:17]}  Qd5 {[%clk 0:01:07]} 17. Bxd6 {[%clk 0:02:12]}  Qxd6 {[%clk 0:01:07]} 18. g3 {[%clk 0:02:05]}  Rfe8 {[%clk 0:00:59]} 19. O-O {[%clk 0:02:04]}  Re6 {[%clk 0:00:34]} 20. Ne5 {[%clk 0:01:58]}  c5 {[%clk 0:00:33]} 21. Nc4 {[%clk 0:01:56]}  Qe7 {[%clk 0:00:32]} 22. dxc5 {[%clk 0:01:56]}  Qxc5 {[%clk 0:00:32]} 23. b4 {[%clk 0:01:54]}  Qf5 {[%clk 0:00:31]} 24. Rfd1 {[%clk 0:01:41]}  Bd5 {[%clk 0:00:28]} 25. Qd2 {[%clk 0:01:20]}  g5 {[%clk 0:00:21]} 26. hxg5 {[%clk 0:01:15]}  Qxg5 {[%clk 0:00:22]} 27. Kg2 {[%clk 0:01:03]}  Kg7 {[%clk 0:00:22]} 28. Rh1 {[%clk 0:01:02]}  Rc8 {[%clk 0:00:12]} 29. Qd4 {[%clk 0:00:57]}  Bxc4 {[%clk 0:00:08]} 30. Rxc4 {[%clk 0:00:55]}  Rxc4 {[%clk 0:00:04]} 31. Bxc4 {[%clk 0:00:55]}  Re5 {[%clk 0:00:03]} 32. Rh4 {[%clk 0:00:38]}  b5 {[%clk 0:00:01]} 33. Be2 {[%clk 0:00:37]}  Rf5 {[%clk 0:00:02]} 34. Rf4 {[%clk 0:00:33]}  Rxf4 {[%clk 0:00:02]} 35. exf4 {[%clk 0:00:33]}  Qd5 {[%clk 0:00:01]} 36. Qxd5 {[%clk 0:00:32]}  Nxd5 {[%clk 0:00:02]} 37. Bxh5 {[%clk 0:00:32]}  f5 {[%clk 0:00:01]} 38. Bd1 {[%clk 0:00:31]}  Nc3 {[%clk 0:00:01]} 39. Bc2 {[%clk 0:00:31]}  Kf6 {[%clk 0:00:01]} 40. Kf1 {[%clk 0:00:31]}  Ke6 {[%clk 0:00:01]} 41. Bb3+ {[%clk 0:00:28]} 1-0


[Site "https://www.chess.com"]

[Event "Titled Tuesday Blitz July 6 2021"]
[White "Mitrabha, Guha"]
[Black "Gontcharov, Vladislav"]
[WhiteFideId "5057000"]
[BlackFideId "4123492"]
[WhiteElo "2334"]
[BlackElo "2503"]
[Result "1-0"]
[Round "06"]
[TimeControl "180+1"]
[Date "2021.07.06"]
[WhiteClock "0:00:06"]
[BlackClock "0:00:11"]

1. d4 {[%clk 0:02:55]}  Nf6 {[%clk 0:02:59]} 2. Nf3 {[%clk 0:02:55]}  g6 {[%clk 0:02:57]} 3. Nbd2 {[%clk 0:02:54]}  d5 {[%clk 0:02:50]} 4. b4 {[%clk 0:02:52]}  Bg7 {[%clk 0:02:49]} 5. e3 {[%clk 0:02:51]}  O-O {[%clk 0:02:49]} 6. c4 {[%clk 0:02:51]}  dxc4 {[%clk 0:02:45]} 7. Nxc4 {[%clk 0:02:51]}  b6 {[%clk 0:02:42]} 8. Be2 {[%clk 0:02:51]}  Bb7 {[%clk 0:02:42]} 9. O-O {[%clk 0:02:51]}  Nc6 {[%clk 0:02:38]} 10. b5 {[%clk 0:02:48]}  Nb4 {[%clk 0:02:37]} 11. Bb2 {[%clk 0:02:47]}  a6 {[%clk 0:02:32]} 12. Qb3 {[%clk 0:02:44]}  Nbd5 {[%clk 0:02:30]} 13. a4 {[%clk 0:02:44]}  a5 {[%clk 0:02:25]} 14. Nce5 {[%clk 0:02:44]}  Ne4 {[%clk 0:02:17]} 15. Rac1 {[%clk 0:02:42]}  Bxe5 {[%clk 0:02:08]} 16. dxe5 {[%clk 0:02:40]}  e6 {[%clk 0:02:07]} 17. Rfd1 {[%clk 0:02:38]}  Qe7 {[%clk 0:01:42]} 18. Ba3 {[%clk 0:02:23]}  Nb4 {[%clk 0:01:40]} 19. Rd4 {[%clk 0:02:22]}  Nc5 {[%clk 0:01:39]} 20. Qc2 {[%clk 0:02:21]}  Rfd8 {[%clk 0:01:24]} 21. Bxb4 {[%clk 0:02:05]}  axb4 {[%clk 0:01:22]} 22. Rf4 {[%clk 0:01:52]}  b3 {[%clk 0:01:20]} 23. Qc3 {[%clk 0:01:47]}  Bd5 {[%clk 0:01:13]} 24. Ra1 {[%clk 0:01:35]}  Ne4 {[%clk 0:00:51]} 25. Qb2 {[%clk 0:01:30]}  g5 {[%clk 0:00:50]} 26. Rxe4 {[%clk 0:01:20]}  Bxe4 {[%clk 0:00:50]} 27. Qxb3 {[%clk 0:01:19]}  h6 {[%clk 0:00:44]} 28. Rc1 {[%clk 0:01:12]}  Rd5 {[%clk 0:00:28]} 29. Rc4 {[%clk 0:01:01]}  Bg6 {[%clk 0:00:24]} 30. e4 {[%clk 0:01:00]}  Rc5 {[%clk 0:00:24]} 31. Rd4 {[%clk 0:00:36]}  Rd8 {[%clk 0:00:23]} 32. h3 {[%clk 0:00:32]}  Rxd4 {[%clk 0:00:18]} 33. Nxd4 {[%clk 0:00:33]}  Rc1+ {[%clk 0:00:17]} 34. Kh2 {[%clk 0:00:32]}  Qc5 {[%clk 0:00:18]} 35. Qd3 {[%clk 0:00:03]}  Qxe5+ {[%clk 0:00:17]} 36. g3 {[%clk 0:00:02]}  Qd6 {[%clk 0:00:17]} 37. Qe3 {[%clk 0:00:02]}  Qe5 {[%clk 0:00:17]} 38. Nc6 {[%clk 0:00:02]}  Qxe4 {[%clk 0:00:17]} 39. Qxc1 {[%clk 0:00:02]}  Qf5 {[%clk 0:00:14]} 40. Qe3 {[%clk 0:00:02]}  Qc2 {[%clk 0:00:14]} 41. h4 {[%clk 0:00:02]}  Kg7 {[%clk 0:00:14]} 42. hxg5 {[%clk 0:00:03]}  hxg5 {[%clk 0:00:14]} 43. Qe5+ {[%clk 0:00:03]}  f6 {[%clk 0:00:13]} 44. Qe3 {[%clk 0:00:04]}  e5 {[%clk 0:00:13]} 45. Kg2 {[%clk 0:00:04]}  Qxa4 {[%clk 0:00:12]} 46. Qc3 {[%clk 0:00:03]}  Qe4+ {[%clk 0:00:12]} 47. Bf3 {[%clk 0:00:04]}  Qf5 {[%clk 0:00:12]} 48. Ne7 {[%clk 0:00:04]}  Qd7 {[%clk 0:00:12]} 49. Nxg6 {[%clk 0:00:05]}  Kxg6 {[%clk 0:00:12]} 50. Be4+ {[%clk 0:00:05]}  Kg7 {[%clk 0:00:12]} 51. Bc6 {[%clk 0:00:05]}  Qe7 {[%clk 0:00:12]} 52. Qd3 {[%clk 0:00:06]}  Qe6 {[%clk 0:00:11]} 53. Qd8 {[%clk 0:00:06]}  Qe7 {[%clk 0:00:11]} 54. Qxe7+ {[%clk 0:00:06]}  Kg6 {[%clk 0:00:11]} 55. Qxc7 {[%clk 0:00:06]} 1-0


[Site "https://www.chess.com"]

[Event "Titled Tuesday Blitz July 6 2021"]
[White "Molina, Roberto Junio Brito"]
[Black "Yakubboev, Nodirbek"]
[WhiteFideId "2109450"]
[BlackFideId "14203987"]
[WhiteElo "2402"]
[BlackElo "2519"]
[Result "0-1"]
[Round "06"]
[TimeControl "180+1"]
[Date "2021.07.06"]
[WhiteClock "0:00:05"]
[BlackClock "0:00:15"]

1. d4 {[%clk 0:03:00]}  Nf6 {[%clk 0:02:59]} 2. c4 {[%clk 0:03:00]}  g6 {[%clk 0:02:59]} 3. Nc3 {[%clk 0:03:00]}  Bg7 {[%clk 0:03:00]} 4. e4 {[%clk 0:03:00]}  d6 {[%clk 0:03:00]} 5. Nf3 {[%clk 0:03:00]}  O-O {[%clk 0:03:00]} 6. Be2 {[%clk 0:03:00]}  e5 {[%clk 0:03:00]} 7. O-O {[%clk 0:03:00]}  Na6 {[%clk 0:03:00]} 8. Re1 {[%clk 0:03:00]}  c6 {[%clk 0:02:54]} 9. Bf1 {[%clk 0:02:56]}  Bg4 {[%clk 0:02:51]} 10. d5 {[%clk 0:02:55]}  c5 {[%clk 0:02:39]} 11. Be2 {[%clk 0:02:53]}  h6 {[%clk 0:02:36]} 12. Nd2 {[%clk 0:02:51]}  Bd7 {[%clk 0:02:35]} 13. Nf1 {[%clk 0:02:51]}  Nh7 {[%clk 0:02:27]} 14. a3 {[%clk 0:02:44]}  f5 {[%clk 0:02:18]} 15. exf5 {[%clk 0:02:33]}  gxf5 {[%clk 0:02:18]} 16. f4 {[%clk 0:02:33]}  e4 {[%clk 0:02:17]} 17. Be3 {[%clk 0:02:30]}  Nf6 {[%clk 0:02:12]} 18. h3 {[%clk 0:02:28]}  Qe8 {[%clk 0:02:01]} 19. Kh2 {[%clk 0:02:19]}  h5 {[%clk 0:01:58]} 20. g3 {[%clk 0:02:16]}  b6 {[%clk 0:01:47]} 21. Qd2 {[%clk 0:02:13]}  Qg6 {[%clk 0:01:44]} 22. Bf2 {[%clk 0:02:05]}  Bh6 {[%clk 0:01:42]} 23. Ne3 {[%clk 0:02:03]}  h4 {[%clk 0:01:39]} 24. Rg1 {[%clk 0:02:03]}  hxg3+ {[%clk 0:01:32]} 25. Bxg3 {[%clk 0:02:03]}  Kf7 {[%clk 0:01:24]} 26. Raf1 {[%clk 0:01:58]}  Rg8 {[%clk 0:01:23]} 27. Qe1 {[%clk 0:01:51]}  Qh7 {[%clk 0:01:14]} 28. Bh4 {[%clk 0:01:36]}  Rxg1 {[%clk 0:01:10]} 29. Kxg1 {[%clk 0:01:37]}  Rg8+ {[%clk 0:01:10]} 30. Kh2 {[%clk 0:01:37]}  Qg6 {[%clk 0:00:55]} 31. Qf2 {[%clk 0:01:33]}  Nc7 {[%clk 0:00:54]} 32. Ncd1 {[%clk 0:01:03]}  Nh5 {[%clk 0:00:46]} 33. Bxh5 {[%clk 0:00:37]}  Qxh5 {[%clk 0:00:47]} 34. Rg1 {[%clk 0:00:33]}  Rxg1 {[%clk 0:00:40]} 35. Kxg1 {[%clk 0:00:34]}  Ne8 {[%clk 0:00:39]} 36. Kh2 {[%clk 0:00:31]}  Nf6 {[%clk 0:00:32]} 37. Bxf6 {[%clk 0:00:30]}  Kxf6 {[%clk 0:00:31]} 38. Nc3 {[%clk 0:00:28]}  a6 {[%clk 0:00:28]} 39. Ng2 {[%clk 0:00:24]}  Kf7 {[%clk 0:00:24]} 40. b4 {[%clk 0:00:17]}  Bg7 {[%clk 0:00:23]} 41. Ne2 {[%clk 0:00:16]}  Qf3 {[%clk 0:00:21]} 42. Qe3 {[%clk 0:00:11]}  Qxe3 {[%clk 0:00:19]} 43. Nxe3 {[%clk 0:00:11]}  cxb4 {[%clk 0:00:19]} 44. axb4 {[%clk 0:00:11]}  a5 {[%clk 0:00:20]} 45. bxa5 {[%clk 0:00:11]}  bxa5 {[%clk 0:00:20]} 46. Nc2 {[%clk 0:00:09]}  a4 {[%clk 0:00:19]} 47. Ned4 {[%clk 0:00:08]}  a3 {[%clk 0:00:18]} 48. Ne6 {[%clk 0:00:05]}  a2 {[%clk 0:00:16]} 49. Nxg7 {[%clk 0:00:05]}  Kxg7 {[%clk 0:00:16]} 50. Kg3 {[%clk 0:00:06]}  Ba4 {[%clk 0:00:15]} 51. Na1 {[%clk 0:00:06]}  Kg6 {[%clk 0:00:15]} 52. Kf2 {[%clk 0:00:06]}  Kh5 {[%clk 0:00:15]} 53. Kg3 {[%clk 0:00:05]}  Bd1 {[%clk 0:00:15]} 54. Kf2 {[%clk 0:00:04]}  Kh4 {[%clk 0:00:15]} 55. Ke3 {[%clk 0:00:04]}  Kxh3 {[%clk 0:00:14]} 56. c5 {[%clk 0:00:04]}  dxc5 {[%clk 0:00:14]} 57. d6 {[%clk 0:00:05]}  Ba4 {[%clk 0:00:14]} 58. Kf2 {[%clk 0:00:02]}  Kg4 {[%clk 0:00:14]} 59. Ke3 {[%clk 0:00:03]}  Kg3 {[%clk 0:00:15]} 60. Nc2 {[%clk 0:00:03]}  Bxc2 {[%clk 0:00:15]} 61. d7 {[%clk 0:00:04]}  a1=Q {[%clk 0:00:15]} 62. d8=Q {[%clk 0:00:05]}  Qe1# {[%clk 0:00:15]} 0-1


[Site "https://www.chess.com"]